bitfinex/quotes_ETHUSD_20250625
["timestamp","ask_amount","ask_price","bid_price","bid_amount"]
[1750829060340,0.55,2429.6,2428.1,7.34065891]
[1750829060341,14.90015082,2429.2,2428.6,4.11758049]
[1750829060545,14.90015082,2429.2,2428.3,4.11796931]
[1750829060546,10.7834,2429.2,2428.3,4.11796931]
[1750829060845,10.0,2428.8,2428.4,4.11792432]
[1750829061012,10.0,2428.9,2428.4,4.11792432]
[1750829064154,10.0,2428.9,2428.5,0.38221413]
[1750829064335,10.0,2428.9,2428.4,4.11792432]
[1750829064336,10.0,2428.9,2428.4,4.11785265]
[1750829064540,10.0,2428.9,2428.3,4.11809211]
[1750829064740,10.0,2428.9,2428.4,4.50005972]
[1750829064940,10.0,2428.9,2428.5,0.38221306]
[1750829065163,10.0,2428.9,2428.6,0.38221306]
[1750829065359,10.0,2428.9,2428.7,0.38219139]
[1750829065660,10.0,2428.9,2428.8,0.38219139]
[1750829065870,10.0,2429.0,2428.8,0.38219139]
[1750829066166,14.11636082,2429.4,2428.9,0.38219139]
[1750829066369,16.75409636,2429.4,2429.0,0.38219139]
[1750829066520,12.63773554,2429.4,2429.1,0.38219139]
[1750829066719,4.11600127,2429.6,2429.2,0.38219139]
[1750829066925,4.11600127,2429.6,2429.0,4.11679633]
[1750829066926,10.0,2429.5,2429.3,0.38219139]
[1750829067264,4.11600127,2429.6,2429.4,0.38225627]
[1750829067265,10.0,2429.6,2429.4,0.38225627]
[1750829067558,10.0,2429.6,2429.1,4.11671299]
[1750829067854,4.11582137,2429.7,2429.2,0.38207365]
[1750829068146,4.11616271,2429.5,2429.3,0.38206749]
[1750829068368,1.6317075,2429.7,2429.0,0.38206749]
[1750829068554,10.0,2429.3,2429.1,0.38206749]
[1750829068758,4.11644559,2429.3,2428.9,2.49206749]
[1750829068967,4.11654603,2429.3,2428.9,0.38206749]
[1750829069135,4.11654603,2429.3,2428.5,4.11768505]
[1750829069136,4.11685414,2429.1,2428.6,2.11]
[1750829069337,4.11692426,2429.0,2428.6,2.11]
[1750829069562,4.11683358,2429.1,2428.6,2.11]
[1750829069863,4.11683358,2429.1,2428.5,4.90218505]
[1750829069864,7.301,2429.0,2428.0,0.8159]
[1750829070051,10.0,2428.7,2428.2,4.11822088]
[1750829070361,4.11744169,2428.7,2428.2,4.11822088]
[1750829070562,4.11776816,2428.5,2427.7,2.11]
[1750829070752,4.90880351,2428.6,2428.1,4.11843197]
[1750829071661,10.7911,2428.6,2428.1,4.11843197]
[1750829071848,14.11761869,2428.6,2428.2,0.7775]
[1750829072169,10.0,2428.6,2428.2,0.7775]
[1750829073335,10.0,2428.6,2428.2,4.89577636]
[1750829073530,4.11733939,2428.8,2428.3,4.11805855]
[1750829073846,14.11717529,2428.9,2428.4,4.11790807]
[1750829074560,14.11720646,2428.9,2428.3,4.11804964]
[1750829075265,14.11720646,2428.9,2428.4,4.11791865]
[1750829075567,4.11720646,2428.9,2428.4,4.11791865]
[1750829075864,10.0,2428.8,2428.3,6.22802101]
[1750829076035,10.0,2428.8,2428.4,4.11792333]
[1750829076339,0.8186,2429.0,2428.4,4.11792333]
[1750829076546,4.11710555,2428.9,2428.4,4.11792333]
[1750829076740,4.11710555,2428.9,2428.3,6.22802247]
[1750829076946,10.0,2428.8,2428.3,6.22802247]
[1750829077671,4.11685641,2429.1,2428.5,4.11767175]
[1750829077964,14.11685641,2429.1,2428.6,4.11757852]
[1750829078155,10.0,2429.1,2428.6,4.11757852]
[1750829078350,4.11630407,2429.4,2428.6,0.82353207]
[1750829078555,4.11613594,2429.5,2428.9,4.1169464]
[1750829079065,10.0,2429.4,2428.9,4.1169464]
[1750829079470,4.11613594,2429.5,2428.9,4.1169464]
[1750829079666,4.11607932,2429.5,2429.0,4.11682566]
[1750829079853,4.11607932,2429.5,2428.9,0.9029306]
[1750829080166,4.11607932,2429.5,2428.7,4.91244564]
[1750829080167,4.11652036,2429.3,2428.7,4.91244564]
[1750829080338,4.11652036,2429.3,2428.6,2.064]
[1750829080339,4.11692216,2429.0,2428.6,2.064]
[1750829080963,4.11682252,2429.1,2428.6,6.18158531]
[1750829081476,4.11682252,2429.1,2428.6,2.064]
[1750829082046,4.89843305,2429.0,2428.4,4.1178787]
[1750829082477,4.11709629,2428.9,2428.4,4.1178787]
[1750829082655,4.89850739,2429.0,2428.4,4.11785073]
[1750829082977,4.11712919,2428.9,2428.4,4.11785073]
[1750829083387,11.68302645,2429.0,2428.4,4.11785073]
[1750829083553,15.79996049,2429.0,2428.3,4.11802136]
[1750829083876,15.79996049,2429.0,2428.1,10.70871]
[1750829083877,4.11751349,2428.7,2428.1,16.06729999]
[1750829084374,4.11749063,2428.7,2428.1,16.06729999]
[1750829084573,14.11732492,2428.8,2428.2,4.11817516]
[1750829084779,14.11729422,2428.8,2428.2,4.11827691]
[1750829084946,14.11729422,2428.8,2428.3,4.11808529]
[1750829085263,14.11729422,2428.8,2428.1,17.31611098]
[1750829085264,4.11744955,2428.7,2428.2,4.11819923]
[1750829085464,4.11744955,2428.7,2428.1,17.31604692]
[1750829085779,4.11744955,2428.7,2428.2,4.11827068]
[1750829085954,14.11733369,2428.8,2428.2,6.33965209]
[1750829086159,4.11747571,2428.7,2428.2,2.22138141]
[1750829086360,14.11733369,2428.8,2428.2,6.3396575]
[1750829086361,14.11734011,2428.8,2428.2,6.3396575]
[1750829086561,14.11734011,2428.8,2428.2,4.11827609]
[1750829086777,14.11734011,2428.8,2428.3,4.11810712]
[1750829086981,14.11734011,2428.8,2428.2,4.11822552]
[1750829089053,0.8163,2428.1,2427.3,0.8275]
[1750829089384,0.8163,2428.1,2427.4,4.11963417]
[1750829089385,7.232,2428.0,2427.4,4.11963417]
[1750829089577,7.232,2428.0,2427.3,0.8275]
[1750829089578,10.0,2428.1,2427.7,4.11909458]
[1750829089762,11.37917767,2428.3,2427.8,4.11887915]
[1750829089957,7.261,2428.3,2427.8,4.11887915]
[1750829091595,10.0,2428.3,2427.8,4.11887915]
[1750829091950,14.1181999,2428.3,2427.8,4.11894239]
[1750829092289,10.0,2428.3,2427.9,4.11876752]
[1750829092493,10.0,2428.3,2427.8,4.11883778]
[1750829092791,12.11822404,2428.4,2427.9,4.11878289]
[1750829092792,10.7512,2428.4,2427.9,4.11878289]
[1750829092955,17.9982,2428.4,2427.9,4.11878289]
[1750829093686,10.7512,2428.4,2427.9,4.11878289]
[1750829094179,14.86915419,2428.4,2427.9,4.11878289]
[1750829094484,22.10715419,2428.4,2427.9,4.11878289]
[1750829094685,14.86915419,2428.4,2427.9,4.11878289]
[1750829094886,22.10415419,2428.4,2427.9,4.11878289]
[1750829095203,14.86915419,2428.4,2427.9,4.11878289]
[1750829095763,17.9822,2428.4,2427.9,4.11878289]
[1750829096108,17.9822,2428.4,2427.3,2.064]
[1750829096109,0.7984,2426.9,2426.3,0.7654]
[1750829096388,10.0,2426.6,2426.3,0.7654]
[1750829096581,10.0,2426.6,2425.8,4.89044103]
[1750829096889,4.12131859,2426.5,2425.9,4.12217611]
[1750829097384,7.302,2426.6,2425.8,0.7681]
[1750829097590,7.302,2426.6,2426.2,4.12153791]
[1750829097989,14.91895539,2426.9,2426.3,4.12146144]
[1750829098288,10.0,2426.7,2426.3,4.12146144]
[1750829098686,10.0,2426.7,2425.8,0.7681]
[1750829098863,14.12083534,2426.7,2426.1,4.1216797]
[1750829099398,4.12126746,2426.5,2425.8,6.95537357]
[1750829099696,4.12142993,2426.4,2425.8,6.18727357]
[1750829099919,4.12122891,2426.5,2425.9,4.12217425]
[1750829100480,10.0,2426.7,2425.7,0.46630412]
[1750829100682,4.12128149,2426.5,2425.8,4.12220026]
[1750829100879,4.12143408,2426.4,2425.8,4.12220026]
[1750829101067,4.12120455,2426.5,2425.9,4.12217911]
[1750829101282,4.12120455,2426.5,2426.0,4.12199545]
[1750829101473,4.12106497,2426.6,2426.0,4.12199545]
[1750829101663,4.12118333,2426.5,2426.0,4.12199545]
[1750829101865,4.12118333,2426.5,2425.9,4.12210832]
[1750829102066,4.12118333,2426.5,2425.8,4.12232626]
[1750829102067,5.97378242,2426.6,2425.8,4.12232626]
[1750829102285,5.97378242,2426.6,2425.9,4.12218145]
[1750829102490,4.12121125,2426.5,2425.9,4.12218145]
[1750829103002,10.0,2426.3,2425.6,0.32545942]
[1750829103304,10.0,2426.3,2425.7,4.12250521]
[1750829103596,23.40958311,2426.3,2425.7,4.12250521]
[1750829103800,23.40958311,2426.3,2425.6,0.32545942]
[1750829103801,21.40858311,2426.3,2425.6,0.32545942]
[1750829104102,8.0513,2426.4,2425.6,0.32545942]
[1750829104304,10.0,2426.3,2425.9,4.12210048]
[1750829104907,8.0513,2426.4,2425.6,0.84754413]
[1750829104908,0.7653,2426.4,2426.0,4.12185439]
[1750829105064,14.12116355,2426.5,2426.0,4.12185439]
[1750829105266,10.0,2426.3,2425.8,4.12226133]
[1750829105693,10.0,2426.3,2425.7,2.065]
[1750829105694,10.0,2426.2,2425.7,6.18745891]
[1750829105873,14.12172228,2426.2,2425.7,6.18745891]
[1750829106077,0.7886,2426.7,2425.7,3.18078345]
[1750829106400,0.7886,2426.7,2425.6,2.91254413]
[1750829106401,10.0,2426.4,2425.6,2.91254413]
[1750829106621,4.12166165,2426.3,2425.7,4.12245995]
[1750829106788,4.12170104,2426.2,2425.7,4.12245995]
[1750829106989,1.06088081,2426.7,2426.3,4.12140598]
[1750829107214,1.06088081,2426.7,2426.2,4.12160902]
[1750829107422,1.06088081,2426.7,2426.6,4.12099233]
[1750829107423,0.27228081,2426.7,2426.6,4.12099233]
[1750829107622,4.11939823,2427.6,2427.0,4.12015842]
[1750829107932,10.90493723,2427.6,2427.1,4.12011822]
[1750829108087,0.90493723,2427.6,2427.1,4.12011822]
[1750829108486,10.90493723,2427.6,2427.1,4.12011822]
[1750829108721,0.90493723,2427.6,2426.8,2.065]
[1750829108895,4.11974688,2427.4,2426.6,4.12099233]
[1750829109101,4.11974688,2427.4,2426.8,4.12064415]
[1750829109304,10.0,2427.3,2426.8,4.12064415]
[1750829109600,14.11981027,2427.3,2426.7,4.12082251]
[1750829109993,14.11981027,2427.3,2426.5,6.9580071]
[1750829109994,4.93923453,2427.1,2426.5,6.18606608]
[1750829110409,4.93923453,2427.1,2426.3,4.12145849]
[1750829110410,4.12033741,2427.0,2426.4,4.12125615]
[1750829110922,14.12053733,2426.9,2426.3,4.12144605]
[1750829111382,4.12071111,2426.8,2426.2,4.12161947]
[1750829111583,10.0,2426.9,2426.3,4.12148463]
[1750829111783,1.41203684,2426.8,2426.3,4.12148463]
[1750829112419,5.53269436,2426.8,2426.0,4.12189809]
[1750829112620,1.41203684,2426.8,2425.9,0.7901]
[1750829112822,5.53276436,2426.8,2426.2,4.1215625]
[1750829113017,1.41203684,2426.8,2426.0,1.27871]
[1750829113236,10.8222,2426.6,2425.6,0.32545942]
[1750829113417,4.12116216,2426.5,2425.6,0.32545942]
[1750829113725,4.12215007,2426.0,2425.6,0.32545942]
[1750829114793,4.94410911,2426.1,2425.6,0.32545942]
[1750829115099,0.8222,2426.8,2425.6,0.77028869]
[1750829115420,0.8222,2426.8,2426.1,4.12177156]
[1750829115421,4.12096042,2426.7,2426.1,4.12177156]
[1750829115618,4.12096042,2426.7,2425.7,0.7901]
[1750829115619,10.0,2426.7,2426.2,4.12158053]
[1750829115918,7.33,2427.1,2426.4,4.12129111]
[1750829115919,10.0,2426.9,2426.4,4.12129111]
[1750829116622,4.12066327,2426.8,2426.2,4.12161047]
[1750829116819,10.0,2426.8,2426.3,4.12149045]
[1750829117002,5.53273703,2426.8,2426.2,4.12160511]
[1750829117202,10.0,2426.7,2426.2,4.12160511]
[1750829117397,1.41205053,2426.8,2425.8,4.12235138]
[1750829117623,4.1212505,2426.5,2425.9,6.22811244]
[1750829117788,4.94348295,2426.5,2425.8,2.106]
[1750829117988,0.8222,2427.1,2425.7,0.7901]
[1750829118221,4.12031314,2427.0,2425.8,2.106]
[1750829118395,14.61488216,2426.9,2426.2,4.12151643]
[1750829118595,14.61488216,2426.9,2426.3,4.12144961]
[1750829119422,14.61488216,2426.9,2425.9,1.02251]
[1750829119423,10.0,2426.7,2425.9,1.02251]
[1750829119797,10.0,2426.7,2426.2,4.12151246]
[1750829120131,10.0,2426.7,2426.3,4.12146641]
[1750829120823,0.8222,2427.1,2426.4,0.7901]
[1750829121014,8.1462,2427.4,2426.6,4.12083264]
[1750829121324,4.12014393,2427.1,2426.5,4.12108254]
[1750829121828,4.12014393,2427.1,2426.6,4.12098554]
[1750829123432,4.12014393,2427.1,2426.5,4.12109058]
[1750829124096,4.12014393,2427.1,2426.6,4.12098326]
[1750829124297,6.67495174,2427.1,2426.5,4.1210794]
[1750829124932,10.0,2427.1,2426.7,4.12072922]
[1750829125727,10.0,2427.1,2426.6,4.12092113]
[1750829126824,10.0,2427.1,2426.7,4.12081971]
[1750829127029,10.0,2427.1,2426.4,0.7901]
[1750829127030,10.0,2427.1,2426.6,4.12091037]
[1750829127214,10.0,2427.1,2426.4,4.91137281]
[1750829127215,10.0,2427.1,2426.7,4.12081241]
[1750829128002,10.0,2427.1,2426.6,4.12090601]
[1750829129011,10.0,2427.1,2426.5,4.12114498]
[1750829129012,14.12018976,2427.1,2426.5,4.12108162]
[1750829129412,14.12018976,2427.1,2426.4,4.1212677]
[1750829129616,0.7703,2426.8,2426.3,6.22743143]
[1750829130427,0.7703,2426.8,2426.4,4.12130284]
[1750829130801,4.11966964,2427.4,2426.4,4.12130284]
[1750829130802,8.0553,2427.3,2426.4,4.12133201]
[1750829131018,4.12019998,2427.1,2426.4,4.12133201]
[1750829131237,4.12019998,2427.1,2426.5,4.12116216]
[1750829131533,4.12019998,2427.1,2426.4,4.12133201]
[1750829131534,4.12019998,2427.1,2426.6,4.12096424]
[1750829132329,10.0,2427.1,2426.6,4.12096424]
[1750829133323,10.0,2427.2,2426.8,4.12053214]
[1750829133630,10.0,2427.2,2426.6,0.824]
[1750829133631,0.7703,2427.3,2426.6,0.824]
[1750829133831,10.0,2427.5,2427.0,4.12021643]
[1750829134233,10.0,2427.5,2427.1,4.12010334]
[1750829134411,2.16262296,2427.6,2427.2,4.11988222]
[1750829134614,0.7814,2427.9,2426.9,2.106]
[1750829134822,4.11855407,2428.1,2427.1,4.12014338]
[1750829135132,4.89950731,2428.3,2428.0,4.11859257]
[1750829135133,0.7814,2428.3,2428.0,4.11859257]
[1750829135310,10.7814,2428.6,2428.0,4.11859257]
[1750829135509,2.27128291,2428.6,2427.7,2.106]
[1750829135705,0.7814,2428.6,2428.2,4.11826666]
[1750829135914,4.11733004,2428.8,2428.2,4.11826666]
[1750829136116,0.22472661,2428.7,2428.2,4.11826666]
[1750829136339,6.03384257,2428.9,2428.3,4.11800249]
[1750829136514,4.34201473,2428.8,2428.2,4.11821937]
[1750829136722,6.89627063,2428.9,2428.3,4.11803412]
[1750829136930,10.22474939,2428.8,2428.3,4.11803412]
[1750829137237,10.22474939,2428.8,2428.2,4.11821937]
[1750829137238,2.77916105,2428.9,2428.4,4.11787246]
[1750829137422,10.0,2428.8,2428.4,4.11787246]
[1750829137926,10.0,2428.8,2428.3,4.11810249]
[1750829138110,10.0,2428.8,2428.4,4.11791968]
[1750829138310,0.8266,2428.9,2428.4,4.11791968]
[1750829138840,10.0,2429.1,2428.4,0.41179197]
[1750829139009,10.0,2428.8,2428.3,4.11800053]
[1750829139214,4.11697018,2429.0,2428.4,4.11777517]
[1750829139944,14.11681358,2429.1,2428.5,4.11775849]
[1750829140264,4.11694262,2429.0,2428.4,4.11786838]
[1750829140415,10.0,2428.8,2428.3,4.11799852]
[1750829140748,4.1170299,2429.0,2428.4,4.11788854]
[1750829140929,10.0,2428.9,2428.4,4.11788854]
[1750829141645,10.0,2428.9,2428.3,5.02238063]
[1750829141646,14.1171136,2428.9,2428.3,5.02238063]
[1750829143147,4.11753811,2428.7,2428.2,4.11826513]
[1750829144551,4.11728844,2428.8,2428.2,4.11826513]
[1750829144755,10.0,2428.9,2428.4,4.11782536]
[1750829144958,10.0,2428.9,2428.4,4.5296079]
[1750829145263,10.0,2428.8,2428.3,4.1179945]
[1750829145626,14.11699495,2429.0,2428.4,4.11793356]
[1750829146263,10.0,2428.8,2428.4,4.11793356]
[1750829147863,14.11699073,2429.0,2428.4,4.11793356]
[1750829150058,14.11699073,2429.0,2428.5,4.11776607]
[1750829150453,21.30979715,2429.1,2428.5,4.11776816]
[1750829150637,14.11679715,2429.1,2428.5,4.11776816]
[1750829150843,10.0,2429.3,2428.8,4.11723416]
[1750829151235,10.0,2429.3,2428.9,4.1170783]
[1750829151555,14.11632713,2429.4,2428.8,4.11718773]
[1750829151775,16.7360703,2429.4,2428.8,4.11718773]
[1750829152332,14.11632713,2429.4,2428.8,4.117174]
[1750829152870,14.11632713,2429.4,2428.6,0.7637]
[1750829152871,4.11608923,2429.5,2428.6,0.7637]
[1750829153033,10.0,2429.4,2429.0,4.11681204]
[1750829153361,17.957,2429.6,2429.0,4.11681204]
[1750829153562,4.11608323,2429.5,2429.0,4.11681204]
[1750829154161,12.07302359,2429.6,2429.0,4.94024376]
[1750829154461,14.11608485,2429.5,2429.0,4.94024376]
[1750829154863,4.1154202,2429.9,2429.1,0.7564]
[1750829155048,4.1154202,2429.9,2429.2,4.11658159]
[1750829155252,4.11556843,2429.8,2429.3,0.48729816]
[1750829155563,10.0,2429.7,2429.3,0.48729816]
[1750829155956,14.11545648,2429.9,2429.3,4.60370951]
[1750829156561,10.0,2429.7,2429.3,4.60370951]
[1750829157345,14.11547145,2429.9,2429.3,4.60370951]
[1750829157556,14.87739373,2430.0,2429.4,4.11623505]
[1750829157869,10.0,2430.1,2429.6,4.1158893]
[1750829158041,10.0,2430.1,2429.7,4.11561027]
[1750829158546,10.0,2430.1,2429.6,4.11581074]
[1750829158745,10.0,2430.1,2429.7,4.11567569]
[1750829159063,7.9392,2430.3,2429.7,4.11559464]
[1750829159269,10.0,2430.2,2429.7,4.11559464]
[1750829159762,4.11510245,2430.1,2429.5,2.8489]
[1750829160075,4.11532596,2430.0,2429.5,4.9129716]
[1750829160232,4.11532596,2430.0,2429.5,0.7969]
[1750829160434,4.11592177,2429.6,2429.2,0.8196]
[1750829160631,4.11592177,2429.6,2429.0,6.16881368]
[1750829160838,0.7978,2429.7,2429.0,2.052]
[1750829161052,14.11610978,2429.5,2429.0,6.16890239]
[1750829161274,10.0,2429.5,2429.0,6.16890239]
[1750829161432,4.91358984,2429.7,2429.0,6.16889842]
[1750829161433,0.7978,2429.7,2429.0,6.16889842]
[1750829161640,4.11599921,2429.6,2429.1,4.11674864]
[1750829162367,4.91367309,2429.7,2429.1,4.11674864]
[1750829162674,14.11567531,2429.8,2429.1,5.22728702]
[1750829162841,14.11567531,2429.8,2429.3,4.11640579]
[1750829163037,4.88817439,2430.0,2429.4,4.11624229]
[1750829163038,0.7729,2430.0,2429.4,4.11624229]
[1750829163349,14.88820823,2430.0,2429.5,4.11605495]
[1750829163553,14.11530823,2430.0,2429.5,4.11605495]
[1750829163757,10.0,2430.0,2429.6,4.11587106]
[1750829164185,10.0,2430.1,2429.7,4.11571027]
[1750829164978,10.0,2430.1,2429.6,4.1158311]
[1750829165297,4.94512188,2430.2,2429.6,5.01527953]
[1750829165479,12.0,2430.1,2429.6,5.01527953]
[1750829165654,10.0,2430.1,2429.6,5.01527953]
[1750829165979,10.0,2430.1,2429.7,4.11571403]
[1750829166578,10.0,2430.1,2429.6,5.01527911]
[1750829166781,4.11510412,2430.1,2429.6,5.01527911]
[1750829167356,4.11510412,2430.1,2429.5,4.11601533]
[1750829168999,14.11499962,2430.2,2429.6,4.11579575]
[1750829169193,4.11506732,2430.1,2429.6,4.11590385]
[1750829170052,4.11530328,2430.0,2429.5,4.11598939]
[1750829170366,4.11530328,2430.0,2429.5,6.09498939]
[1750829170579,4.11530328,2430.0,2429.5,7.19237572]
[1750829172387,4.11530328,2430.0,2429.5,6.09498939]
[1750829173848,10.0,2429.9,2429.5,1.979]
[1750829174986,10.0,2429.9,2429.5,6.09505594]
[1750829176190,10.8329,2430.0,2429.6,4.11588517]
[1750829177827,10.8329,2430.0,2429.5,6.09492688]
[1750829178088,10.0,2430.0,2429.6,5.21327271]
[1750829178792,10.0,2430.0,2429.6,1.0973736]
[1750829178990,10.0,2430.0,2429.5,6.09500691]
[1750829181794,0.8035,2430.6,2429.4,0.7626]
[1750829181999,0.8035,2430.6,2429.5,1.979]
[1750829182000,4.11491556,2430.2,2429.5,1.979]
[1750829182297,4.11508618,2430.1,2429.6,4.11581379]
[1750829182469,4.11508618,2430.1,2429.6,5.50545517]
[1750829182673,4.11547773,2429.9,2429.5,1.979]
[1750829183661,4.87501492,2430.0,2429.5,1.979]
[1750829183861,4.87501492,2430.0,2429.5,6.09505246]
[1750829184164,0.7597,2430.0,2429.6,4.11589473]
[1750829184483,0.7597,2430.0,2429.5,6.09500771]
[1750829184685,4.87496133,2430.0,2429.5,6.09500771]
[1750829185188,0.7597,2430.0,2429.5,6.09500771]
[1750829185395,0.7804,2430.9,2429.6,1.343]
[1750829185594,4.24252129,2430.8,2429.7,0.793]
[1750829185779,10.0,2430.6,2430.1,4.11495566]
[1750829186504,4.11422298,2430.6,2430.1,4.11495566]
[1750829188098,21.17811867,2430.7,2430.1,4.11495566]
[1750829188394,23.78536313,2430.7,2430.1,4.11495566]
[1750829188806,12.60724446,2430.7,2430.2,0.8141]
[1750829189120,12.60724446,2430.7,2430.2,4.92891618]
[1750829190010,14.89420322,2430.9,2430.3,4.114685]
[1750829190215,0.7804,2430.9,2430.2,0.8141]
[1750829190426,7.8344,2430.9,2430.4,4.11442075]
[1750829191211,14.11361804,2431.0,2430.4,4.11442075]
[1750829191409,0.12858773,2430.9,2430.5,4.11435401]
[1750829191717,21.16461804,2431.0,2430.4,4.11446843]
[1750829192114,21.16461804,2431.0,2430.5,4.11435591]
[1750829192298,17.051,2431.0,2430.5,4.11435591]
[1750829192616,21.15955603,2431.0,2430.4,4.11448675]
[1750829192801,4.11371926,2430.9,2430.4,4.11448675]
[1750829194722,4.11371926,2430.9,2430.3,4.11466067]
[1750829195021,4.11371926,2430.9,2430.3,5.01901986]
[1750829198122,4.11371926,2430.9,2430.4,4.1145187]
[1750829198325,17.046,2431.0,2430.2,0.8141]
[1750829198626,4.11440936,2430.5,2429.9,6.85213383]
[1750829198814,4.11440936,2430.5,2430.0,4.11518335]
[1750829200114,11.13828626,2430.6,2430.0,4.11518335]
[1750829201643,11.13828626,2430.6,2430.1,4.11504311]
[1750829202642,11.13828626,2430.6,2430.0,4.11513771]
[1750829203447,11.13828626,2430.6,2430.1,4.11504306]
[1750829204243,7.724,2430.6,2430.2,4.11488151]
[1750829208650,0.7,2430.6,2430.2,4.11488151]
[1750829208864,6.995,2430.6,2430.2,4.11488151]
[1750829209221,6.995,2430.6,2430.3,4.11470968]
[1750829209760,6.995,2430.6,2430.2,4.11480356]
[1750829210066,6.995,2430.6,2430.3,4.11471088]
[1750829210246,6.995,2430.6,2430.0,6.58452389]
[1750829210247,6.992,2430.6,2430.0,6.58452389]
[1750829210452,10.0,2430.8,2430.4,4.11445661]
[1750829210663,10.0,2430.7,2430.5,4.11437491]
[1750829211266,0.8053,2430.9,2430.6,4.11409914]
[1750829211465,0.50914105,2431.7,2430.6,4.11412861]
[1750829211466,6.987,2431.0,2430.6,4.11412861]
[1750829211644,9.18024273,2431.0,2430.6,4.11412861]
[1750829211970,16.987,2431.1,2430.7,4.11403954]
[1750829212165,10.0,2431.1,2430.6,4.11412227]
[1750829212464,16.985,2431.1,2430.6,4.11412227]
[1750829212839,16.984,2431.1,2430.6,4.11412227]
[1750829213670,21.09739366,2431.1,2430.6,4.11412227]
[1750829213870,16.984,2431.1,2430.6,4.11412227]
[1750829214167,21.09739528,2431.1,2430.6,4.11412227]
[1750829214475,21.09739528,2431.1,2430.5,4.11425107]
[1750829214651,21.09739528,2431.1,2430.5,5.37605287]
[1750829215676,21.09739528,2431.1,2430.6,4.11419688]
[1750829216181,21.08939528,2431.1,2430.6,4.11419688]
[1750829216747,16.976,2431.1,2430.6,4.11419688]
[1750829216986,16.976,2431.1,2430.6,5.25514615]
[1750829218686,10.8321,2431.2,2430.6,5.25510229]
[1750829218893,21.91131106,2431.2,2430.7,4.11390192]
[1750829219072,21.91131106,2431.2,2430.6,5.25507911]
[1750829219585,21.91131106,2431.2,2430.7,4.11400396]
[1750829219886,10.8321,2431.2,2430.8,4.11377781]
[1750829220070,17.7961,2431.2,2430.8,4.11377781]
[1750829220271,21.9093353,2431.2,2430.7,6.00995728]
[1750829223294,17.7961,2431.2,2430.7,6.00995728]
[1750829223483,10.8321,2431.2,2430.7,6.00995728]
[1750829223685,10.0,2431.0,2430.8,5.1262791]
[1750829224192,10.0,2431.0,2430.8,1.01241537]
[1750829224593,10.0,2431.0,2430.7,4.94686495]
[1750829229115,4.94530292,2431.2,2430.7,4.94686495]
[1750829229323,11.89830292,2431.2,2430.7,4.94686495]
[1750829230080,10.0,2431.1,2430.7,4.94686495]
[1750829230709,10.0,2431.1,2430.8,4.11385517]
[1750829231216,4.1131003,2431.3,2430.8,4.11385517]
[1750829231426,10.0,2431.1,2430.8,4.11385517]
[1750829233532,14.92514372,2431.4,2430.9,4.11363095]
[1750829233692,6.953,2431.3,2430.9,4.11363095]
[1750829233893,17.7652,2431.4,2431.0,4.1134068]
[1750829234925,0.8122,2431.4,2431.0,4.1134068]
[1750829236832,0.8122,2431.4,2430.9,1.88]
[1750829236833,0.8122,2431.4,2430.9,5.99362079]
[1750829237325,0.8122,2431.4,2430.9,7.08765566]
[1750829238837,0.8122,2431.4,2431.0,4.11351381]
[1750829240037,21.06471831,2431.5,2431.0,4.11351381]
[1750829241229,4.1128643,2431.4,2430.9,7.08764944]
[1750829242815,21.06476472,2431.5,2430.9,7.08764944]
[1750829243115,14.11276472,2431.5,2431.0,4.11352362]
[1750829243315,16.951,2431.5,2431.0,4.11352362]
[1750829243517,21.06371143,2431.5,2431.0,4.11352362]
[1750829243716,10.0,2431.3,2430.9,7.08766007]
[1750829244116,10.0,2431.4,2430.9,7.08766007]
[1750829244332,21.0637776,2431.5,2430.9,7.08766007]
[1750829244527,10.0,2431.4,2430.9,7.08766007]
[1750829245024,11.0637776,2431.5,2431.0,4.11350207]
[1750829248538,10.0,2431.4,2431.0,4.11350207]
[1750829248733,10.0,2431.4,2431.0,5.04018244]
[1750829252344,10.0,2431.4,2431.0,4.11350207]
[1750829259446,10.0,2431.4,2431.1,4.11334057]
[1750829259746,10.0,2431.4,2431.0,4.11344956]
[1750829261043,10.0,2431.4,2431.1,4.1133205]
[1750829261438,10.0,2431.5,2431.1,4.1133205]
[1750829261847,0.7924,2431.6,2431.2,4.11312701]
[1750829262146,4.11211461,2431.9,2431.5,4.11262825]
[1750829262147,7.7427,2431.9,2431.5,4.11262825]
[1750829262330,17.7427,2431.9,2431.5,4.11262825]
[1750829262854,7.7427,2431.9,2431.2,7.38322389]
[1750829263015,7.7427,2431.9,2431.6,4.11244955]
[1750829264026,10.0,2432.0,2431.6,4.11244955]
[1750829264223,16.945,2432.0,2431.6,4.11244955]
[1750829264623,0.8253,2432.1,2431.4,1.876]
[1750829264945,6.945,2432.5,2432.0,4.11170785]
[1750829265118,10.0,2432.4,2432.0,4.11170785]
[1750829265316,6.944,2432.5,2432.1,4.11161178]
[1750829265513,4.11065893,2432.7,2432.1,4.11161178]
[1750829265748,17.84805956,2432.6,2432.1,4.11161178]
[1750829265926,15.01489895,2432.6,2432.1,4.11161178]
[1750829266132,0.7649,2433.4,2432.1,7.41452389]
[1750829266330,4.11066893,2432.7,2432.2,4.11141018]
[1750829266521,7.7089,2432.9,2432.2,4.11150398]
[1750829266721,10.0,2432.8,2432.4,4.11107637]
[1750829266922,10.0,2432.8,2432.5,4.11096341]
[1750829267320,4.10985635,2433.2,2432.6,4.110812]
[1750829267522,0.8146,2433.2,2432.6,4.90482792]
[1750829267734,0.8146,2433.2,2432.8,4.11036899]
[1750829268055,6.943,2433.5,2433.0,4.11005992]
[1750829268257,4.10920655,2433.6,2433.1,4.10996529]
[1750829268455,6.943,2433.5,2433.1,4.10996529]
[1750829268749,6.943,2433.6,2433.1,4.10996529]
[1750829268954,11.05215677,2433.6,2433.1,4.10996529]
[1750829269157,11.05215677,2433.6,2433.0,4.11008981]
[1750829269351,11.05215677,2433.6,2433.1,0.82203977]
[1750829269556,6.943,2433.6,2433.1,4.93201201]
[1750829269750,10.0,2433.5,2433.2,4.10980231]
[1750829270054,10.0,2433.7,2433.2,4.10980231]
[1750829270241,16.942,2433.7,2433.2,4.10980231]
[1750829270443,16.942,2433.7,2433.2,5.09096425]
[1750829270649,0.8146,2433.8,2433.3,4.10964532]
[1750829270947,0.7878,2434.7,2433.8,4.10867315]
[1750829271257,0.8162,2434.1,2433.5,0.7716]